bitfinex/quotes_SOLUSD_20251002
["timestamp","ask_amount","ask_price","bid_price","bid_amount"]
[1759407567460,16.92868972,226.42,226.32,4.41852244]
[1759407567461,0.7,226.38,226.32,4.41852244]
[1759407567767,0.7,226.37,226.32,4.41852244]
[1759407568066,0.7,226.36,226.32,4.41852244]
[1759407568268,0.7,226.35,226.32,4.41852244]
[1759407568451,0.7,226.35,226.33,31.08]
[1759407568766,5.11758647,226.37,226.33,31.08]
[1759407569069,0.7,226.36,226.33,31.08]
[1759407569272,0.7,226.36,226.32,35.49852244]
[1759407570166,0.7,226.36,226.32,31.08]
[1759407570466,0.7,226.35,226.32,31.08]
[1759407572873,0.7,226.35,226.29,15.46662535]
[1759407573057,0.7,226.35,226.3,31.08]
[1759407573465,5.11737598,226.38,226.3,31.08]
[1759407573662,133.6,226.4,226.31,10.87647521]
[1759407574172,132.9,226.4,226.35,10.87647521]
[1759407574349,132.9,226.4,226.36,31.06]
[1759407574671,133.6,226.4,226.36,31.06]
[1759407574852,0.7,226.39,226.36,31.06]
[1759407575252,0.7,226.39,226.36,35.47761174]
[1759407575760,132.9,226.4,226.36,35.47761174]
[1759407576077,133.6,226.4,226.36,35.47761174]
[1759407577367,0.7,226.4,226.36,35.47761174]
[1759407577766,4.41660823,226.42,226.36,35.47761174]
[1759407577975,0.7,226.39,226.36,35.47761174]
[1759407579967,0.7,226.41,226.36,35.47761174]
[1759407580485,0.7,226.43,226.36,35.47761174]
[1759407580981,5.11670214,226.42,226.36,35.47761174]
[1759407581184,0.7,226.41,226.36,35.47761174]
[1759407582160,4.41657801,226.42,226.24,21.75860951]
[1759407582161,33.23069132,226.4,226.24,21.75860951]
[1759407582360,1.47069132,226.38,226.27,4.41949882]
[1759407582567,0.7,226.37,226.28,31.06]
[1759407582868,0.7,226.36,226.28,31.06]
[1759407583063,0.7,226.35,226.28,31.06]
[1759407583368,15.46141272,226.37,226.28,35.47927379]
[1759407583369,0.7,226.34,226.28,35.47927379]
[1759407584161,0.7,226.33,226.28,31.06]
[1759407584381,16.93210404,226.37,226.28,31.06]
[1759407584687,0.7,226.32,226.28,35.47930171]
[1759407585968,5.11830952,226.34,226.28,35.47930171]
[1759407587987,0.7,226.33,226.28,35.47930171]
[1759407588392,0.7,226.32,226.28,35.47930171]
[1759407588690,16.93278709,226.36,226.28,31.06]
[1759407588879,0.7,226.31,226.27,31.06]
[1759407589076,0.7,226.3,226.25,20.8]
[1759407589394,0.7,226.3,226.26,31.06]
[1759407590176,0.7,226.32,226.26,35.47968051]
[1759407597290,5.11853669,226.32,226.26,35.47968051]
[1759407598405,5.11853669,226.32,226.26,4.41968051]
[1759407598704,5.11853669,226.32,226.26,35.47968051]
[1759407598901,0.7,226.32,226.26,35.47968051]
[1759407599108,4.41859749,226.32,226.26,35.47968051]
[1759407599312,0.69,226.31,226.26,35.47968051]
[1759407600405,4.41813201,226.34,226.26,35.47968051]
[1759407600583,0.69,226.33,226.26,35.47968051]
[1759407600787,5.10813201,226.34,226.26,35.47968051]
[1759407601189,0.69,226.33,226.26,35.47968051]
[1759407601493,5.10838307,226.33,226.26,35.47968051]
[1759407601701,0.69,226.33,226.26,35.47968051]
[1759407601894,0.69,226.32,226.25,20.8]
[1759407602105,2.16069132,226.31,226.24,17.61363636]
[1759407602283,0.69,226.3,226.24,17.61363636]
[1759407602480,0.69,226.29,226.24,17.61363636]
[1759407602707,0.69,226.28,226.24,17.61363636]
[1759407602883,0.69,226.27,226.24,17.61363636]
[1759407604287,0.69,226.26,226.24,17.61363636]
[1759407604589,0.69,226.27,226.24,17.61363636]
[1759407605710,0.69,226.3,226.24,22.03363715]
[1759407606110,0.69,226.29,226.24,17.61363636]
[1759407606418,0.69,226.28,226.24,17.61363636]
[1759407607402,0.69,226.27,226.24,17.61363636]
[1759407607597,0.69,226.26,226.24,17.61363636]
[1759407609208,5.10941556,226.28,226.24,17.61363636]
[1759407609391,0.69,226.27,226.24,17.61363636]
[1759407610303,0.69,226.29,226.24,22.03369393]
[1759407610711,5.10871768,226.31,226.24,22.03369393]
[1759407610920,0.69,226.3,226.24,22.03369393]
[1759407611426,4.41871768,226.31,226.24,22.03369393]
[1759407611589,0.69,226.29,226.24,22.03369393]
[1759407612404,4.4190468,226.3,226.24,17.61363636]
[1759407612612,0.69,226.28,226.24,17.61363636]
[1759407612830,0.69,226.27,226.24,17.61363636]
[1759407613009,0.69,226.29,226.24,22.03368382]
[1759407613210,4.4190468,226.3,226.24,22.03368382]
[1759407613398,0.69,226.28,226.24,17.61363636]
[1759407613597,0.69,226.27,226.24,17.61363636]
[1759407614801,0.69,226.29,226.24,22.03362375]
[1759407615006,0.69,226.28,226.24,22.03362375]
[1759407615336,0.69,226.28,226.24,17.61363636]
[1759407618220,0.69,226.28,226.24,22.03370819]
[1759407619129,5.1090347,226.3,226.24,22.03370819]
[1759407619345,0.69,226.29,226.24,22.03370819]
[1759407619511,0.69,226.28,226.24,22.03370819]
[1759407620399,4.41871768,226.31,226.24,22.03370819]
[1759407620400,5.10901473,226.3,226.24,22.03370819]
[1759407620702,4.41901473,226.3,226.24,22.03370819]
[1759407620901,0.69,226.29,226.24,22.03370819]
[1759407621208,0.69,226.29,226.24,17.61363636]
[1759407621436,0.69,226.28,226.24,17.61363636]
[1759407623822,2.99102748,226.27,226.24,17.61363636]
[1759407624033,4.4193211,226.28,226.24,17.61363636]
[1759407624034,0.7,226.26,226.24,17.61363636]
[1759407624799,6.72034858,226.28,226.24,17.61363636]
[1759407624800,0.7,226.25,226.24,17.61363636]
[1759407625006,6.72034858,226.28,226.24,17.61363636]
[1759407625201,0.7,226.27,226.24,17.61363636]
[1759407625627,0.7,226.26,226.24,17.61363636]
[1759407625818,0.7,226.25,226.24,17.61363636]
[1759407627339,5.1198895,226.25,226.24,17.61363636]
[1759407630525,0.7,226.25,226.24,17.61363636]
[1759407630731,7.42091698,226.25,226.24,17.61363636]
[1759407631142,5.1198895,226.25,226.24,17.61363636]
[1759407632121,7.42091698,226.25,226.24,17.61363636]
[1759407635529,5.1198895,226.25,226.24,17.61363636]
[1759407635735,7.42091698,226.25,226.24,17.61363636]
[1759407637041,38.48091698,226.25,226.24,17.61363636]
[1759407637447,38.48091698,226.25,226.24,1e-08]
[1759407637948,51.75965992,226.25,226.24,1e-08]
[1759407639336,18.39863244,226.25,226.24,1e-08]
[1759407639535,38.48091698,226.25,226.24,1e-08]
[1759407641070,36.1798895,226.25,226.24,1e-08]
[1759407641273,35.4798895,226.25,226.24,1e-08]
[1759407641568,36.1798895,226.25,226.24,1e-08]
[1759407641938,38.48091698,226.25,226.24,1e-08]
[1759407643571,43.10291784,226.25,226.24,1e-08]
[1759407648342,12.04291784,226.25,226.24,1e-08]
[1759407648540,43.10291784,226.25,226.24,1e-08]
[1759407649562,5.1198895,226.25,226.24,1e-08]
[1759407649867,38.48091698,226.25,226.24,1e-08]
[1759407658471,7.42091698,226.25,226.24,1e-08]
[1759407658773,38.46091698,226.25,226.24,1e-08]
[1759407661186,43.08291784,226.25,226.24,1e-08]
[1759407661676,38.46091698,226.25,226.24,1e-08]
[1759407662580,43.08291784,226.25,226.24,1e-08]
[1759407662881,63.88291784,226.25,226.24,1e-08]
[1759407664371,63.05569009,226.25,226.24,1e-08]
[1759407667188,61.58189036,226.25,226.24,1e-08]
[1759407667372,63.05569009,226.25,226.24,1e-08]
[1759407670281,29.84189036,226.25,226.24,1e-08]
[1759407670485,4.4198895,226.25,226.24,1e-08]
[1759407670678,35.4598895,226.25,226.24,1e-08]
[1759407671976,36.1298895,226.25,226.24,1e-08]
[1759407672182,36.93368923,226.25,226.24,1e-08]
[1759407672799,35.4598895,226.25,226.24,1e-08]
[1759407673483,25.21940027,226.28,226.24,1e-08]
[1759407673792,31.04,226.27,226.24,1e-08]
[1759407675105,4.41969415,226.26,226.24,1e-08]
[1759407675300,32.51379973,226.25,226.24,1e-08]
[1759407675804,46.46195495,226.25,226.24,1e-08]
[1759407676405,50.88184445,226.25,226.24,1e-08]
[1759407680291,13.27815522,226.25,226.24,1e-08]
[1759407681009,4.4198895,226.25,226.24,1e-08]
[1759407681306,31.04,226.27,226.24,1e-08]
[1759407682620,36.11950278,226.27,226.24,1e-08]
[1759407682912,2.13379973,226.26,226.24,1e-08]
[1759407683080,31.04,226.25,226.24,1e-08]
[1759407683609,33.17379973,226.25,226.24,1e-08]
[1759407684607,6.55368923,226.25,226.24,1e-08]
[1759407684808,37.59368923,226.25,226.24,1e-08]
[1759407685796,2.30746109,226.27,226.24,1e-08]
[1759407686101,31.04,226.27,226.24,1e-08]
[1759407686810,35.45951845,226.27,226.24,1e-08]
[1759407688488,25.21920888,226.29,226.24,1e-08]
[1759407688787,31.02,226.28,226.24,1e-08]
[1759407689593,5.07930842,226.28,226.24,1e-08]
[1759407689787,0.66,226.27,226.24,1e-08]
[1759407690206,31.68,226.27,226.24,1e-08]
[1759407690612,31.02,226.27,226.24,1e-08]
[1759407692210,35.43951897,226.27,226.24,1e-08]
[1759407692390,36.09951897,226.27,226.24,1e-08]
[1759407692809,35.43951897,226.27,226.24,1e-08]
[1759407693012,0.66,226.26,226.24,1e-08]
[1759407693402,35.43951897,226.27,226.24,1e-08]
[1759407694084,36.09951897,226.27,226.24,1e-08]
[1759407695185,31.68,226.27,226.24,1e-08]
[1759407695617,31.02,226.27,226.24,1e-08]
[1759407696509,36.09926937,226.29,226.24,1e-08]
[1759407696815,5.07926937,226.29,226.24,1e-08]
[1759407697021,163.92,226.3,226.24,1e-08]
[1759407697914,132.9,226.3,226.24,1e-08]
[1759407698107,36.0984742,226.33,226.24,1e-08]
[1759407698514,36.0984742,226.33,226.24,10.87647522]
[1759407699094,0.66,226.32,226.25,4.4198895]
[1759407700116,0.66,226.33,226.27,20.8]
[1759407700414,1.47379973,226.37,226.27,20.8]
[1759407700415,0.66,226.32,226.27,20.8]
[1759407700623,0.66,226.31,226.27,20.8]
[1759407703020,0.66,226.31,226.26,4.41952778]
[1759407703021,2.13379973,226.3,226.24,1e-08]
[1759407704222,4.41910822,226.29,226.24,1e-08]
[1759407704822,0.66,226.28,226.24,1e-08]
[1759407705426,0.66,226.27,226.24,1e-08]
[1759407706528,0.66,226.29,226.24,1e-08]
[1759407706899,35.43930474,226.33,226.24,1e-08]
[1759407707123,0.66,226.29,226.24,1e-08]
[1759407707711,0.66,226.28,226.24,1e-08]
[1759407709627,4.41853531,226.32,226.24,1e-08]
[1759407709835,0.66,226.32,226.24,1e-08]
[1759407710503,0.66,226.32,226.24,10.87647522]
[1759407710708,0.66,226.31,226.24,10.87647522]
[1759407711611,0.66,226.31,226.25,4.4198895]
[1759407716212,33.32450034,226.35,226.28,10.87647521]
[1759407716213,11.05070061,226.35,226.28,10.87647521]
[1759407716415,0.68,226.38,226.32,10.87647521]
[1759407716616,1.47379973,226.45,226.32,10.87647521]
[1759407716617,0.68,226.37,226.32,31.0]
[1759407716827,0.68,226.36,226.32,31.0]
[1759407717032,0.68,226.35,226.28,20.8]
[1759407717221,5.09815133,226.34,226.29,11.05070061]
[1759407717416,0.68,226.33,226.26,4.41957427]
[1759407717617,0.68,226.32,226.26,4.41957427]
[1759407717938,0.68,226.31,226.26,4.41957427]
[1759407720840,4.41793734,226.35,226.26,15.46880966]
[1759407721133,0.68,226.33,226.26,15.46880966]
[1759407726911,27.51724592,226.38,226.26,15.46880966]
[1759407727116,27.51724592,226.38,226.27,4.41792807]
[1759407727117,0.68,226.35,226.27,4.41792807]
[1759407727939,0.68,226.34,226.27,4.41792807]
[1759407729845,0.68,226.34,226.28,4.41930351]
[1759407730748,4.41677857,226.41,226.29,41.87647521]
[1759407730926,0.68,226.39,226.29,41.87647521]
[1759407731243,0.68,226.38,226.29,41.87647521]
[1759407732122,0.68,226.38,226.3,15.4661953]
[1759407732742,0.68,226.38,226.31,10.87647521]
[1759407733526,0.68,226.38,226.31,23.89389489]
[1759407733736,0.68,226.38,226.31,10.87647521]
[1759407734134,0.68,226.38,226.32,15.46482855]
[1759407734333,133.58,226.42,226.33,10.87647521]
[1759407734539,0.68,226.41,226.34,31.0]
[1759407735434,0.68,226.41,226.34,34.60906634]
[1759407736351,0.68,226.41,226.35,4.41793682]
[1759407736529,0.68,226.45,226.35,15.46277887]
[1759407736722,0.68,226.44,226.38,20.8]
[1759407736927,0.68,226.43,226.36,31.0]
[1759407737149,0.68,226.42,226.37,31.0]
[1759407737350,0.68,226.41,226.37,31.0]
[1759407737554,0.68,226.4,226.37,31.0]
[1759407739481,0.68,226.4,226.34,15.29460722]
[1759407739641,0.68,226.4,226.36,31.0]
[1759407740652,0.68,226.4,226.36,35.41769332]
[1759407741032,4.41682172,226.41,226.34,15.29443684]
[1759407741251,0.68,226.39,226.35,31.0]
[1759407742329,4.41682172,226.41,226.36,4.41774165]
[1759407742330,0.68,226.41,226.36,4.41774165]
[1759407742637,4.41637592,226.43,226.36,4.41774165]
[1759407742638,0.68,226.4,226.36,4.41774165]
[1759407749555,4.41677596,226.41,226.35,31.0]
[1759407749734,0.7,226.4,226.35,31.0]
[1759407750055,0.7,226.42,226.35,35.41789745]
[1759407750254,0.7,226.41,226.35,35.41789745]
[1759407751355,132.9,226.47,226.36,10.87647521]
[1759407751535,0.7,226.46,226.37,4.41754649]
[1759407752359,0.7,226.46,226.38,10.87647521]
[1759407752539,0.1,226.48,226.43,20.8]
[1759407752748,0.1,226.48,226.44,30.98]
[1759407753549,0.1,226.48,226.45,4.41598586]
[1759407754492,0.1,226.48,226.44,35.39616363]
[1759407754957,0.7,226.47,226.44,30.98]
[1759407755353,0.7,226.47,226.43,20.8]
[1759407755851,4.51546074,226.48,226.43,25.21632677]
[1759407756164,4.51547322,226.48,226.43,20.8]
[1759407756378,0.7,226.47,226.44,30.98]
[1759407756660,4.51547322,226.48,226.44,30.98]
[1759407756870,5.21547322,226.48,226.44,30.98]
[1759407759153,0.8,226.48,226.44,30.98]
[1759407762044,0.8,226.48,226.43,25.21636363]
[1759407762045,5.21540309,226.48,226.43,25.21636363]
[1759407762378,0.7,226.47,226.44,30.98]
[1759407762548,4.51540309,226.48,226.44,30.98]
[1759407762750,0.8,226.48,226.44,30.98]
[1759407763270,4.51542341,226.48,226.44,30.98]
[1759407763445,0.7,226.47,226.43,20.8]
[1759407763640,0.7,226.47,226.44,30.98]
[1759407766765,4.51542341,226.48,226.44,30.98]
[1759407766766,0.1,226.48,226.44,30.98]
[1759407766970,0.7,226.47,226.44,35.39617171]
[1759407767686,0.7,226.46,226.4,15.29326256]
[1759407767884,0.7,226.45,226.4,20.8]
[1759407768092,0.7,226.45,226.38,4.41720409]
[1759407768093,0.7,226.44,226.38,4.41720409]
[1759407768382,2.29971488,226.47,226.37,10.87647521]
[1759407768383,0.7,226.43,226.37,10.87647521]
[1759407768562,5.11657097,226.42,226.38,30.96]
[1759407768770,5.11657097,226.42,226.37,10.87647521]
[1759407769273,5.11657097,226.42,226.38,30.96]
[1759407769577,4.41657097,226.42,226.38,30.96]
[1759407769963,5.11657097,226.42,226.38,30.96]
[1759407770858,5.11657097,226.42,226.34,10.87647521]
[1759407770859,0.7,226.41,226.34,10.87647521]
[1759407771085,0.7,226.4,226.35,30.96]
[1759407771407,0.7,226.39,226.31,17.75925251]
[1759407771555,0.7,226.38,226.29,10.87647521]
[1759407771764,0.7,226.37,226.3,30.96]
[1759407772061,0.7,226.36,226.31,30.96]
[1759407772565,5.11781865,226.36,226.31,30.96]
[1759407773485,0.7,226.35,226.31,30.96]
[1759407774569,0.68,226.34,226.28,34.00352261]
[1759407774872,0.68,226.33,226.28,51.76]
[1759407775098,4.41806543,226.35,226.28,51.76]
[1759407775279,0.68,226.34,226.28,30.96]
[1759407777512,0.68,226.34,226.29,4.41910822]
[1759407777887,4.41788319,226.36,226.29,4.41910822]
[1759407778091,0.68,226.33,226.29,4.41910822]
[1759407778605,4.41788319,226.36,226.29,4.41910822]
[1759407778792,0.68,226.33,226.29,4.41910822]
[1759407780218,0.68,226.33,226.28,30.96]
[1759407780575,0.68,226.32,226.28,30.96]
[1759407780787,0.68,226.32,226.28,35.37929288]
[1759407780988,0.68,226.32,226.28,30.96]
[1759407781189,0.68,226.33,226.28,30.96]
[1759407782088,0.68,226.33,226.28,35.37925076]
[1759407782422,4.41781017,226.36,226.28,35.37925076]
[1759407782597,5.09781017,226.36,226.28,35.37925076]
[1759407782791,0.68,226.4,226.32,20.8]
[1759407783027,0.68,226.4,226.33,30.98]
[1759407783392,4.41690058,226.41,226.34,4.41813201]
[1759407783631,0.68,226.39,226.34,4.41813201]
[1759407783794,0.68,226.43,226.36,20.8]
[1759407784126,0.68,226.43,226.36,51.78]
[1759407784630,0.68,226.42,226.36,30.98]
[1759407784922,15.45526803,226.46,226.36,30.98]
[1759407784923,0.68,226.41,226.36,30.98]
[1759407785118,0.68,226.4,226.36,30.98]
[1759407785419,0.68,226.39,226.36,30.98]
[1759407785817,4.41618088,226.44,226.36,30.98]
[1759407785995,0.68,226.43,226.36,35.39771019]
[1759407786395,0.68,226.42,226.36,35.39771019]
[1759407788020,4.41618088,226.44,226.36,35.39771019]
[1759407788227,0.68,226.45,226.36,35.39771019]
[1759407788424,0.68,226.45,226.37,10.87647521]
[1759407789299,0.68,226.45,226.38,4.41735135]
[1759407790309,5.0960477,226.45,226.38,4.41735135]
[1759407791794,0.68,226.45,226.38,4.41735135]
[1759407792131,133.58,226.47,226.39,10.87647521]
[1759407792299,133.58,226.47,226.4,30.96]
[1759407792729,133.58,226.47,226.41,4.41676604]
[1759407793804,0.68,226.46,226.41,4.41676604]
[1759407794397,132.9,226.47,226.41,4.41676604]
[1759407794627,0.1,226.48,226.41,15.45868114]
[1759407794926,0.78,226.48,226.41,15.45868114]
[1759407795791,0.1,226.48,226.41,15.45868114]
[1759407795996,0.68,226.47,226.41,15.45868114]
[1759407798325,0.1,226.48,226.42,10.87647521]
[1759407798527,0.1,226.48,226.43,30.96]
[1759407798732,0.1,226.48,226.44,10.87647521]
[1759407800728,0.1,226.48,226.44,15.29247165]
[1759407801428,0.1,226.48,226.44,10.87647521]
[1759407801800,4.5154465,226.48,226.38,24.30307043]
[1759407802002,0.68,226.47,226.42,20.8]
[1759407802614,4.5154465,226.48,226.39,15.29363144]
[1759407802824,4.41598586,226.45,226.4,30.96]
[1759407803005,5.13598586,226.45,226.4,30.96]
[1759407804232,0.7,226.44,226.4,30.96]
[1759407806330,0.7,226.44,226.39,15.29363144]
[1759407806530,0.7,226.44,226.38,20.8]
[1759407806531,0.7,226.43,226.38,20.8]
[1759407806705,0.7,226.42,226.38,51.76]
[1759407808615,0.7,226.44,226.38,51.76]
[1759407810024,4.41637592,226.43,226.39,30.96]
[1759407810231,5.11637592,226.43,226.38,20.8]
[1759407810502,5.11637592,226.43,226.35,20.8]
[1759407810503,0.7,226.42,226.35,20.8]
[1759407810732,4.41637592,226.43,226.36,30.96]
[1759407810733,0.7,226.41,226.36,30.96]
[1759407810939,0.7,226.4,226.36,30.96]
[1759407811237,0.7,226.4,226.35,30.96]
[1759407811930,5.11712336,226.4,226.35,30.96]
[1759407812138,5.11712336,226.4,226.34,10.87647521]
[1759407812437,5.11712336,226.4,226.35,30.96]
[1759407812638,4.41712336,226.4,226.35,30.96]
[1759407812844,0.7,226.39,226.35,30.96]
[1759407813141,0.7,226.38,226.33,10.87647521]
[1759407813431,0.7,226.37,226.29,10.87647521]
[1759407813634,0.7,226.36,226.3,30.96]
[1759407813818,4.41813201,226.34,226.31,30.96]
[1759407814233,5.1179519,226.35,226.31,30.96]
[1759407815245,11.04374867,226.38,226.31,30.96]
[1759407815452,11.04219644,226.41,226.31,30.96]
[1759407815608,0.7,226.41,226.32,10.87647521]
[1759407816538,0.7,226.4,226.32,10.87647521]
[1759407818132,5.11703898,226.4,226.34,10.87647521]
[1759407818308,5.11703898,226.4,226.35,30.96]
[1759407819745,0.7,226.4,226.35,35.37793084]
[1759407820811,0.7,226.39,226.34,10.87647521]
[1759407821008,0.7,226.38,226.35,30.96]
[1759407821306,0.7,226.4,226.35,30.96]
[1759407821542,0.7,226.43,226.35,30.96]
[1759407822130,0.7,226.43,226.35,35.3779254]
[1759407822529,5.11656295,226.43,226.35,35.3779254]
[1759407823130,5.11656295,226.43,226.35,56.1779254]
[1759407825943,5.11656295,226.43,226.38,20.8]
[1759407826144,0.7,226.42,226.38,20.8]
[1759407826448,0.7,226.42,226.38,25.21732992]
[1759407827746,0.7,226.42,226.39,30.96]
[1759407828564,0.7,226.44,226.39,30.96]
[1759407828765,0.7,226.43,226.39,30.96]
[1759407829270,0.7,226.42,226.39,30.96]
[1759407829605,148.35489223,226.47,226.39,30.96]
[1759407829776,0.7,226.44,226.39,30.96]
[1759407830059,0.7,226.43,226.39,30.96]
[1759407830259,0.7,226.43,226.38,4.41732992]
[1759407830467,0.7,226.43,226.39,30.96]
[1759407830637,5.11599863,226.45,226.39,35.37713377]
[1759407831759,5.11599863,226.45,226.39,20.8]
[1759407831946,5.11599863,226.45,226.4,30.96]
[1759407832146,0.7,226.44,226.4,30.96]
[1759407832351,0.7,226.44,226.37,20.8]
[1759407832540,2.17045966,226.43,226.38,30.96]
[1759407832751,2.17045966,226.42,226.37,20.8]
[1759407833132,0.7,226.41,226.37,20.8]
[1759407833351,0.7,226.4,226.37,20.8]
[1759407833559,0.7,226.39,226.37,20.8]
[1759407833946,5.11716994,226.39,226.34,25.21811812]
[1759407834245,0.68,226.38,226.35,30.96]
[1759407834445,0.68,226.38,226.37,20.8]
[1759407836561,5.09735276,226.38,226.34,20.8]
[1759407836767,0.68,226.37,226.32,30.96]
[1759407836969,0.68,226.36,226.31,51.76]
[1759407837141,5.09735276,226.38,226.31,51.76]
[1759407837968,5.09735276,226.38,226.31,56.17869089]
[1759407838646,5.09735276,226.38,226.32,30.96]
[1759407838846,0.68,226.37,226.32,30.96]
[1759407839156,0.68,226.36,226.32,30.96]
[1759407839879,4.41735276,226.38,226.32,30.96]
[1759407840062,0.68,226.38,226.32,35.37841026]
[1759407841181,0.68,226.4,226.32,35.37841026]
[1759407841347,0.68,226.4,226.35,20.8]
[1759407841542,4.41676604,226.41,226.35,51.76]
[1759407841748,5.09659549,226.42,226.35,51.76]
[1759407841966,5.09618088,226.44,226.35,51.76]
[1759407842266,9.68226788,226.47,226.36,4.41774165]
[1759407842483,0.68,226.46,226.39,20.8]
[1759407842656,0.68,226.46,226.4,30.96]
[1759407843459,0.68,226.46,226.4,35.37679218]
[1759407844972,4.4156478,226.47,226.4,35.37679218]
[1759407845270,0.68,226.46,226.4,30.96]
[1759407845650,4.41598586,226.45,226.4,30.96]
[1759407845856,5.09598586,226.45,226.41,30.96]
[1759407846975,0.68,226.44,226.4,30.96]
[1759407847174,0.68,226.43,226.4,30.96]
[1759407847690,0.1,226.48,226.43,20.8]
[1759407847852,0.68,226.47,226.43,20.8]
[1759407848051,0.68,226.46,226.43,20.8]
[1759407848268,0.68,226.45,226.44,20.8]
[1759407848664,0.68,226.45,226.41,30.96]
[1759407849144,0.68,226.47,226.44,20.8]
[1759407849345,0.68,226.46,226.44,20.8]
[1759407851470,0.68,226.45,226.44,20.8]
[1759407853056,5.09573595,226.47,226.44,20.8]
[1759407853359,0.68,226.46,226.44,20.8]
[1759407854061,0.68,226.45,226.36,4.41755716]
[1759407854256,0.68,226.44,226.37,30.94]
[1759407854588,0.68,226.43,226.41,20.8]
[1759407855278,5.09653462,226.43,226.37,20.8]
[1759407855580,5.09653462,226.43,226.36,4.41771286]
[1759407855761,5.09653462,226.43,226.37,51.74]
[1759407855961,0.68,226.42,226.37,51.74]
[1759407856564,0.68,226.42,226.37,20.8]
[1759407856759,0.68,226.42,226.37,51.74]
[1759407857081,4.41696113,226.4,226.39,20.8]
[1759407857384,4.41696113,226.4,226.37,30.94]
[1759407857763,5.09696113,226.4,226.37,30.94]
[1759407858202,0.68,226.39,226.3,20.8]
[1759407858358,6.71378085,226.4,226.3,20.8]
[1759407858359,0.68,226.38,226.3,30.94]
[1759407858562,0.68,226.37,226.33,20.8]
[1759407858896,0.68,226.36,226.33,20.8]
[1759407859265,4.41793682,226.35,226.3,30.94]
[1759407859616,13.33922254,226.4,226.33,20.8]
[1759407859617,0.68,226.38,226.33,20.8]
[1759407859778,0.68,226.37,226.33,20.8]
[1759407860562,15.46004681,226.39,226.33,20.8]
[1759407860762,4.41754649,226.37,226.33,20.8]
[1759407861062,17.75823244,226.37,226.31,20.8]
[1759407861262,0.68,226.36,226.31,20.8]
[1759407861481,0.68,226.35,226.31,20.8]
[1759407861672,17.75823244,226.37,226.31,20.8]
[1759407861968,0.68,226.36,226.31,20.8]
[1759407862174,0.68,226.35,226.31,20.8]
[1759407862387,0.68,226.34,226.31,20.8]
[1759407862699,0.67,226.33,226.27,20.8]
[1759407862875,0.67,226.33,226.31,20.8]
[1759407864275,0.7,226.35,226.28,30.94]
[1759407866166,4.41813201,226.34,226.28,30.94]
[1759407866795,5.11813201,226.34,226.28,30.94]
[1759407868101,5.11813201,226.34,226.29,20.8]
[1759407868867,0.7,226.34,226.29,20.8]
[1759407869077,4.41796014,226.35,226.29,20.8]
[1759407869668,0.7,226.35,226.29,25.21898692]
[1759407870694,4.41813201,226.34,226.29,25.21898692]
[1759407871096,4.41813201,226.34,226.29,20.8]
[1759407871393,0.7,226.33,226.31,20.8]
[1759407871692,4.41813201,226.34,226.31,20.8]
[1759407871899,0.7,226.33,226.31,20.8]
[1759407872581,5.11842261,226.33,226.31,20.8]
[1759407872898,5.11774165,226.36,226.31,20.8]
[1759407873390,4.41774165,226.36,226.31,20.8]
[1759407873593,0.7,226.35,226.31,20.8]
[1759407873796,4.41774165,226.36,226.31,20.8]